[Event "Titled Tuesday Blitz December 13 Early 2022"]
[White "Torres Dominguez, David"]
[Black "Kodinets, Konstantin L."]
[WhiteFideId "2220857"]
[BlackFideId "4122011"]
[WhiteElo "2037"]
[BlackElo "2447"]
[Result "0-1"]
[Round "01"]
[TimeControl "180+1"]
[Date "2022.12.14"]
[WhiteClock "0:00:13"]
[BlackClock "0:00:22"]

1. e4 {[%clk 0:02:59]}  e5 {[%clk 0:02:59]} 2. Bc4 {[%clk 0:02:59]}  d6 {[%clk 0:02:59]} 3. Nc3 {[%clk 0:02:59]}  Be6 {[%clk 0:03:00]} 4. Bxe6 {[%clk 0:02:58]}  fxe6 {[%clk 0:03:01]} 5. d3 {[%clk 0:02:57]}  Nc6 {[%clk 0:03:01]} 6. f4 {[%clk 0:02:57]}  exf4 {[%clk 0:03:00]} 7. Bxf4 {[%clk 0:02:57]}  Nf6 {[%clk 0:03:00]} 8. Nf3 {[%clk 0:02:57]}  d5 {[%clk 0:03:00]} 9. exd5 {[%clk 0:02:55]}  exd5 {[%clk 0:02:59]} 10. O-O {[%clk 0:02:54]}  Be7 {[%clk 0:02:59]} 11. Qd2 {[%clk 0:02:48]}  O-O {[%clk 0:02:58]} 12. Rae1 {[%clk 0:02:48]}  Bb4 {[%clk 0:02:54]} 13. a3 {[%clk 0:02:45]}  Ba5 {[%clk 0:02:54]} 14. b4 {[%clk 0:02:45]}  Bb6+ {[%clk 0:02:54]} 15. Kh1 {[%clk 0:02:44]}  Qd7 {[%clk 0:02:46]} 16. h3 {[%clk 0:02:32]}  a6 {[%clk 0:02:44]} 17. Ne5 {[%clk 0:02:15]}  Nxe5 {[%clk 0:02:43]} 18. Bxe5 {[%clk 0:02:16]}  Nh5 {[%clk 0:01:51]} 19. Qg5 {[%clk 0:01:37]}  g6 {[%clk 0:01:50]} 20. d4 {[%clk 0:01:33]}  c6 {[%clk 0:01:48]} 21. Na4 {[%clk 0:01:08]}  Ba7 {[%clk 0:01:47]} 22. Nc5 {[%clk 0:01:08]}  Bxc5 {[%clk 0:01:46]} 23. bxc5 {[%clk 0:01:09]}  Rxf1+ {[%clk 0:01:31]} 24. Rxf1 {[%clk 0:01:09]}  Rf8 {[%clk 0:01:31]} 25. Rxf8+ {[%clk 0:01:04]}  Kxf8 {[%clk 0:01:32]} 26. g4 {[%clk 0:01:04]}  Ng7 {[%clk 0:01:30]} 27. Qf6+ {[%clk 0:01:04]}  Kg8 {[%clk 0:01:21]} 28. Qxg7+ {[%clk 0:01:04]}  Qxg7 {[%clk 0:01:21]} 29. Bxg7 {[%clk 0:01:04]}  Kxg7 {[%clk 0:01:22]} 30. Kg2 {[%clk 0:01:05]}  Kf6 {[%clk 0:01:17]} 31. Kf3 {[%clk 0:01:04]}  h5 {[%clk 0:01:16]} 32. Kf4 {[%clk 0:01:03]}  hxg4 {[%clk 0:01:16]} 33. hxg4 {[%clk 0:01:03]}  g5+ {[%clk 0:01:16]} 34. Kf3 {[%clk 0:01:03]}  Ke6 {[%clk 0:01:14]} 35. Ke3 {[%clk 0:01:04]}  Kd7 {[%clk 0:01:15]} 36. Kd3 {[%clk 0:01:04]}  Kc7 {[%clk 0:01:15]} 37. Kc3 {[%clk 0:01:05]}  b6 {[%clk 0:01:14]} 38. Kb4 {[%clk 0:00:59]}  a5+ {[%clk 0:01:01]} 39. Ka4 {[%clk 0:00:58]}  Kb7 {[%clk 0:01:01]} 40. cxb6 {[%clk 0:00:55]}  Kxb6 {[%clk 0:01:02]} 41. Kb3 {[%clk 0:00:54]}  c5 {[%clk 0:01:01]} 42. dxc5+ {[%clk 0:00:53]}  Kxc5 {[%clk 0:01:01]} 43. Ka4 {[%clk 0:00:41]}  Kc4 {[%clk 0:01:00]} 44. Kxa5 {[%clk 0:00:41]}  d4 {[%clk 0:00:52]} 45. Kb6 {[%clk 0:00:39]}  Kc3 {[%clk 0:00:50]} 46. a4 {[%clk 0:00:39]}  Kxc2 {[%clk 0:00:50]} 47. a5 {[%clk 0:00:36]}  d3 {[%clk 0:00:51]} 48. a6 {[%clk 0:00:37]}  d2 {[%clk 0:00:52]} 49. a7 {[%clk 0:00:37]}  d1=Q {[%clk 0:00:52]} 50. a8=Q {[%clk 0:00:37]}  Qd4+ {[%clk 0:00:41]} 51. Kc7 {[%clk 0:00:37]}  Qxg4 {[%clk 0:00:38]} 52. Qa2+ {[%clk 0:00:36]}  Kd3 {[%clk 0:00:34]} 53. Qb3+ {[%clk 0:00:34]}  Ke4 {[%clk 0:00:27]} 54. Qc4+ {[%clk 0:00:33]}  Kf3 {[%clk 0:00:27]} 55. Qf1+ {[%clk 0:00:32]}  Kg3 {[%clk 0:00:27]} 56. Qg1+ {[%clk 0:00:30]}  Kf4 {[%clk 0:00:27]} 57. Qc1+ {[%clk 0:00:29]}  Kf5 {[%clk 0:00:26]} 58. Qc2+ {[%clk 0:00:25]}  Kf6 {[%clk 0:00:25]} 59. Qc3+ {[%clk 0:00:22]}  Kg6 {[%clk 0:00:23]} 60. Qd3+ {[%clk 0:00:20]}  Qf5 {[%clk 0:00:23]} 61. Qd6+ {[%clk 0:00:19]}  Qf6 {[%clk 0:00:23]} 62. Qd3+ {[%clk 0:00:18]}  Kh6 {[%clk 0:00:22]} 63. Qh3+ {[%clk 0:00:18]}  Kg7 {[%clk 0:00:22]} 64. Kd7 {[%clk 0:00:17]}  Qe5 {[%clk 0:00:19]} 65. Qg4 {[%clk 0:00:13]}  Kf6 {[%clk 0:00:20]} 66. Qf3+ {[%clk 0:00:12]}  Qf5+ {[%clk 0:00:20]} 67. Qxf5+ {[%clk 0:00:12]}  Kxf5 {[%clk 0:00:21]} 68. Kd6 {[%clk 0:00:12]}  g4 {[%clk 0:00:22]} 69. Kd5 {[%clk 0:00:12]}  Kf4 {[%clk 0:00:22]} 70. Kd4 {[%clk 0:00:13]}  Kf3 {[%clk 0:00:22]} 0-1


[Site "https://www.chess.com"]

[Event "Titled Tuesday Blitz December 13 Early 2022"]
[White "Tworuszka, Michal"]
[Black "Shipov, Sergei"]
[WhiteFideId "1117858"]
[BlackFideId "4113624"]
[WhiteElo "2426"]
[BlackElo "2793"]
[Result "0-1"]
[Round "01"]
[TimeControl "180+1"]
[Date "2022.12.14"]
[WhiteClock "0:00:01"]
[BlackClock "0:00:13"]

1. d4 {[%clk 0:02:52]}  d5 {[%clk 0:02:57]} 2. c4 {[%clk 0:02:51]}  e6 {[%clk 0:02:55]} 3. Nf3 {[%clk 0:02:49]}  c5 {[%clk 0:02:54]} 4. cxd5 {[%clk 0:02:48]}  exd5 {[%clk 0:02:54]} 5. Nc3 {[%clk 0:02:45]}  Nc6 {[%clk 0:02:53]} 6. g3 {[%clk 0:02:32]}  c4 {[%clk 0:02:53]} 7. Bg2 {[%clk 0:02:30]}  Bb4 {[%clk 0:02:53]} 8. O-O {[%clk 0:02:30]}  Nge7 {[%clk 0:02:52]} 9. a3 {[%clk 0:02:23]}  Ba5 {[%clk 0:02:51]} 10. Qc2 {[%clk 0:02:07]}  O-O {[%clk 0:02:47]} 11. Rd1 {[%clk 0:02:06]}  h6 {[%clk 0:02:02]} 12. e4 {[%clk 0:01:41]}  Be6 {[%clk 0:02:02]} 13. exd5 {[%clk 0:01:03]}  Nxd5 {[%clk 0:02:00]} 14. Nxd5 {[%clk 0:01:04]}  Bxd5 {[%clk 0:01:59]} 15. Ne5 {[%clk 0:00:55]}  Bxg2 {[%clk 0:01:52]} 16. Kxg2 {[%clk 0:00:52]}  Qd5+ {[%clk 0:01:42]} 17. f3 {[%clk 0:00:42]}  Rfd8 {[%clk 0:01:03]} 18. Nxc6 {[%clk 0:00:07]}  Qxc6 {[%clk 0:01:01]} 19. Be3 {[%clk 0:00:08]}  b5 {[%clk 0:00:57]} 20. Bf2 {[%clk 0:00:08]}  Bb6 {[%clk 0:00:55]} 21. Rac1 {[%clk 0:00:08]}  Rac8 {[%clk 0:00:46]} 22. Qe4 {[%clk 0:00:09]}  Qd5 {[%clk 0:00:41]} 23. Rc2 {[%clk 0:00:04]}  a5 {[%clk 0:00:34]} 24. Re2 {[%clk 0:00:03]}  f5 {[%clk 0:00:24]} 25. Qe6+ {[%clk 0:00:02]}  Qxe6 {[%clk 0:00:21]} 26. Rxe6 {[%clk 0:00:03]}  Bc7 {[%clk 0:00:16]} 27. d5 {[%clk 0:00:03]}  Kf7 {[%clk 0:00:14]} 28. Rc6 {[%clk 0:00:01]}  Bd6 {[%clk 0:00:13]} 0-1


[Site "https://www.chess.com"]

[Event "Titled Tuesday Blitz December 13 Early 2022"]
[White "Tymrakiewicz, Rafal"]
[Black "Moroni, Luca Jr"]
[WhiteFideId "1108832"]
[BlackFideId "865834"]
[WhiteElo "2139"]
[BlackElo "2573"]
[Result "0-1"]
[Round "01"]
[TimeControl "180+1"]
[Date "2022.12.14"]
[WhiteClock "0:00:15"]
[BlackClock "0:00:28"]

1. d4 {[%clk 0:02:57]}  d6 {[%clk 0:03:00]} 2. Bg5 {[%clk 0:02:55]}  h6 {[%clk 0:02:53]} 3. Bh4 {[%clk 0:02:54]}  Nf6 {[%clk 0:02:51]} 4. Nd2 {[%clk 0:02:49]}  g5 {[%clk 0:02:50]} 5. Bg3 {[%clk 0:02:49]}  Nh5 {[%clk 0:02:51]} 6. e3 {[%clk 0:02:43]}  Nxg3 {[%clk 0:02:47]} 7. hxg3 {[%clk 0:02:44]}  Bg7 {[%clk 0:02:48]} 8. Bc4 {[%clk 0:02:43]}  e6 {[%clk 0:02:46]} 9. Qh5 {[%clk 0:02:38]}  Qe7 {[%clk 0:02:43]} 10. f4 {[%clk 0:02:34]}  Nd7 {[%clk 0:02:40]} 11. Ngf3 {[%clk 0:02:19]}  Nf6 {[%clk 0:02:39]} 12. Qh2 {[%clk 0:02:19]}  Ng4 {[%clk 0:02:37]} 13. Qg1 {[%clk 0:02:19]}  a6 {[%clk 0:02:26]} 14. O-O-O {[%clk 0:02:17]}  b5 {[%clk 0:02:25]} 15. Be2 {[%clk 0:02:18]}  f5 {[%clk 0:01:43]} 16. Ne1 {[%clk 0:01:56]}  Bb7 {[%clk 0:01:34]} 17. Bf3 {[%clk 0:01:52]}  c6 {[%clk 0:01:28]} 18. Nd3 {[%clk 0:01:24]}  O-O-O {[%clk 0:01:24]} 19. fxg5 {[%clk 0:01:19]}  Qxg5 {[%clk 0:01:21]} 20. Nf4 {[%clk 0:01:18]}  Rhe8 {[%clk 0:01:18]} 21. Rh5 {[%clk 0:01:14]}  Qf6 {[%clk 0:01:18]} 22. Bxg4 {[%clk 0:01:15]}  fxg4 {[%clk 0:01:18]} 23. Rf1 {[%clk 0:01:11]}  Qe7 {[%clk 0:01:14]} 24. Rh4 {[%clk 0:00:51]}  e5 {[%clk 0:01:11]} 25. Nh5 {[%clk 0:00:49]}  exd4 {[%clk 0:01:01]} 26. Nxg7 {[%clk 0:00:45]}  Qxg7 {[%clk 0:01:02]} 27. exd4 {[%clk 0:00:45]}  Re2 {[%clk 0:01:02]} 28. Rd1 {[%clk 0:00:35]}  Rf8 {[%clk 0:00:56]} 29. Rf1 {[%clk 0:00:24]}  Rfe8 {[%clk 0:00:50]} 30. Rd1 {[%clk 0:00:19]}  Qg5 {[%clk 0:00:46]} 31. Qf1 {[%clk 0:00:17]}  c5 {[%clk 0:00:41]} 32. dxc5 {[%clk 0:00:15]}  dxc5 {[%clk 0:00:42]} 33. Qf4 {[%clk 0:00:15]}  Qxf4 {[%clk 0:00:33]} 34. gxf4 {[%clk 0:00:15]}  Rxg2 {[%clk 0:00:33]} 35. Nb3 {[%clk 0:00:14]}  Ree2 {[%clk 0:00:28]} 36. Rd2 {[%clk 0:00:14]}  Rxd2 {[%clk 0:00:27]} 37. Nxd2 {[%clk 0:00:14]}  Rg1+ {[%clk 0:00:27]} 38. Nf1 {[%clk 0:00:14]}  Rxf1+ {[%clk 0:00:28]} 39. Kd2 {[%clk 0:00:15]}  Rxf4 {[%clk 0:00:28]} 40. Rxh6 {[%clk 0:00:15]}  g3 {[%clk 0:00:27]} 41. Rg6 {[%clk 0:00:15]}  g2 {[%clk 0:00:28]} 0-1


[Site "https://www.chess.com"]

[Event "Titled Tuesday Blitz December 13 Early 2022"]
[White "Vifleemskaia, Svetlana"]
[Black "Khripachenko, Alexander"]
[WhiteFideId "4129490"]
[BlackFideId "54184975"]
[WhiteElo "1930"]
[BlackElo "2301"]
[Result "0-1"]
[Round "01"]
[TimeControl "180+1"]
[Date "2022.12.14"]
[WhiteClock "0:00:32"]
[BlackClock "0:01:59"]

1. d4 {[%clk 0:02:58]}  d5 {[%clk 0:02:56]} 2. c4 {[%clk 0:02:57]}  e6 {[%clk 0:02:55]} 3. Nc3 {[%clk 0:02:57]}  Be7 {[%clk 0:02:56]} 4. cxd5 {[%clk 0:02:56]}  exd5 {[%clk 0:02:57]} 5. Bf4 {[%clk 0:02:56]}  c6 {[%clk 0:02:57]} 6. Nf3 {[%clk 0:02:55]}  Bf5 {[%clk 0:02:57]} 7. Qb3 {[%clk 0:02:53]}  Qb6 {[%clk 0:02:57]} 8. e3 {[%clk 0:02:50]}  Nd7 {[%clk 0:02:56]} 9. Be2 {[%clk 0:02:44]}  Ngf6 {[%clk 0:02:56]} 10. O-O {[%clk 0:02:43]}  h6 {[%clk 0:02:54]} 11. Na4 {[%clk 0:02:40]}  Qxb3 {[%clk 0:02:54]} 12. axb3 {[%clk 0:02:41]}  Nh5 {[%clk 0:02:51]} 13. Bc7 {[%clk 0:02:34]}  Rc8 {[%clk 0:02:42]} 14. Ba5 {[%clk 0:02:22]}  Nhf6 {[%clk 0:02:41]} 15. Bd2 {[%clk 0:02:12]}  Ne4 {[%clk 0:02:41]} 16. Be1 {[%clk 0:02:10]}  O-O {[%clk 0:02:38]} 17. Nc3 {[%clk 0:02:04]}  a6 {[%clk 0:02:36]} 18. Nd2 {[%clk 0:01:57]}  Nd6 {[%clk 0:02:29]} 19. Na4 {[%clk 0:01:44]}  Rfe8 {[%clk 0:02:28]} 20. g4 {[%clk 0:01:39]}  Bh7 {[%clk 0:02:26]} 21. f4 {[%clk 0:01:34]}  Bf6 {[%clk 0:02:21]} 22. Bf2 {[%clk 0:01:24]}  Bxd4 {[%clk 0:02:20]} 23. exd4 {[%clk 0:01:09]}  Rxe2 {[%clk 0:02:20]} 24. Nf3 {[%clk 0:01:07]}  Be4 {[%clk 0:02:03]} 25. Ne5 {[%clk 0:01:06]}  Nf8 {[%clk 0:02:04]} 26. Be1 {[%clk 0:00:49]}  Rg2+ {[%clk 0:02:02]} 27. Kh1 {[%clk 0:00:35]}  Rxg4+ {[%clk 0:02:01]} 28. Nf3 {[%clk 0:00:32]}  Rxf4 {[%clk 0:02:01]} 29. Kg2 {[%clk 0:00:32]}  Nf5 {[%clk 0:01:59]} 0-1


[Site "https://www.chess.com"]

[Event "Titled Tuesday Blitz December 13 Early 2022"]
[White "Vokhidov, Shamsiddin"]
[Black "Miller, Luke C"]
[WhiteFideId "14204223"]
[BlackFideId "2096935"]
[WhiteElo "2597"]
[BlackElo "2494"]
[Result "1-0"]
[Round "01"]
[TimeControl "180+1"]
[Date "2022.12.13"]
[WhiteClock "0:02:04"]
[BlackClock "0:00:30"]

1. e4 {[%clk 0:03:00]}  c5 {[%clk 0:02:59]} 2. Nf3 {[%clk 0:02:59]}  d6 {[%clk 0:02:59]} 3. d4 {[%clk 0:02:58]}  cxd4 {[%clk 0:03:00]} 4. Nxd4 {[%clk 0:02:59]}  Nf6 {[%clk 0:03:00]} 5. Nc3 {[%clk 0:03:00]}  g6 {[%clk 0:03:00]} 6. f3 {[%clk 0:03:00]}  Bg7 {[%clk 0:03:00]} 7. Be3 {[%clk 0:03:00]}  O-O {[%clk 0:03:01]} 8. Qd2 {[%clk 0:03:01]}  Nc6 {[%clk 0:03:01]} 9. g4 {[%clk 0:03:01]}  Be6 {[%clk 0:02:50]} 10. Nxe6 {[%clk 0:02:58]}  fxe6 {[%clk 0:02:51]} 11. O-O-O {[%clk 0:02:59]}  Qc8 {[%clk 0:02:42]} 12. h4 {[%clk 0:02:58]}  Ne5 {[%clk 0:02:12]} 13. Be2 {[%clk 0:02:57]}  h5 {[%clk 0:01:34]} 14. gxh5 {[%clk 0:02:41]}  Nxh5 {[%clk 0:01:30]} 15. Rhg1 {[%clk 0:02:40]}  Rxf3 {[%clk 0:01:06]} 16. Bd4 {[%clk 0:02:31]}  Kh7 {[%clk 0:00:54]} 17. Rg5 {[%clk 0:02:14]}  Nc4 {[%clk 0:00:39]} 18. Bxc4 {[%clk 0:02:10]}  Qxc4 {[%clk 0:00:38]} 19. Rxh5+ {[%clk 0:02:05]}  gxh5 {[%clk 0:00:34]} 20. Bxg7 {[%clk 0:02:05]}  Kxg7 {[%clk 0:00:30]} 21. Qg2+ {[%clk 0:02:04]} 1-0


[Site "https://www.chess.com"]

[Event "Titled Tuesday Blitz December 13 Early 2022"]
[White "Xie, Bryan"]
[Black "Talibov, Shiroghlan"]
[WhiteFideId "30941296"]
[BlackFideId "13429078"]
[WhiteElo "2033"]
[BlackElo "2261"]
[Result "0-1"]
[Round "01"]
[TimeControl "180+1"]
[Date "2022.12.14"]
[WhiteClock "0:00:03"]
[BlackClock "0:01:12"]

1. e4 {[%clk 0:02:52]}  d6 {[%clk 0:02:56]} 2. d4 {[%clk 0:02:52]}  Nf6 {[%clk 0:02:56]} 3. Nc3 {[%clk 0:02:52]}  Nbd7 {[%clk 0:02:56]} 4. Nf3 {[%clk 0:02:41]}  c6 {[%clk 0:02:53]} 5. e5 {[%clk 0:02:22]}  dxe5 {[%clk 0:02:50]} 6. dxe5 {[%clk 0:02:19]}  Ng4 {[%clk 0:02:45]} 7. e6 {[%clk 0:02:00]}  fxe6 {[%clk 0:02:44]} 8. Ng5 {[%clk 0:01:50]}  Nde5 {[%clk 0:02:29]} 9. Qxd8+ {[%clk 0:01:38]}  Kxd8 {[%clk 0:02:30]} 10. f4 {[%clk 0:01:37]}  h6 {[%clk 0:02:29]} 11. fxe5 {[%clk 0:00:47]}  hxg5 {[%clk 0:02:28]} 12. Bxg5 {[%clk 0:00:48]}  Nxe5 {[%clk 0:02:28]} 13. O-O-O+ {[%clk 0:00:49]}  Ke8 {[%clk 0:02:28]} 14. Be2 {[%clk 0:00:39]}  Nf7 {[%clk 0:02:17]} 15. Be3 {[%clk 0:00:32]}  Nd6 {[%clk 0:02:12]} 16. Bf4 {[%clk 0:00:18]}  Bd7 {[%clk 0:02:09]} 17. Bg4 {[%clk 0:00:16]}  g6 {[%clk 0:02:01]} 18. Rhe1 {[%clk 0:00:16]}  Bh6 {[%clk 0:01:45]} 19. Bxh6 {[%clk 0:00:13]}  Rxh6 {[%clk 0:01:46]} 20. Bxe6 {[%clk 0:00:13]}  Bxe6 {[%clk 0:01:47]} 21. Rxe6 {[%clk 0:00:14]}  Kf7 {[%clk 0:01:48]} 22. Rde1 {[%clk 0:00:13]}  Re8 {[%clk 0:01:46]} 23. h3 {[%clk 0:00:14]}  Rh5 {[%clk 0:01:42]} 24. R6e2 {[%clk 0:00:12]}  Rf5 {[%clk 0:01:42]} 25. Ne4 {[%clk 0:00:11]}  Nxe4 {[%clk 0:01:34]} 26. Rxe4 {[%clk 0:00:12]}  e5 {[%clk 0:01:33]} 27. g4 {[%clk 0:00:12]}  Rf3 {[%clk 0:01:32]} 28. h4 {[%clk 0:00:06]}  Rf4 {[%clk 0:01:24]} 29. Rxf4+ {[%clk 0:00:06]}  exf4 {[%clk 0:01:24]} 30. Rf1 {[%clk 0:00:07]}  Re4 {[%clk 0:01:25]} 31. Kd2 {[%clk 0:00:06]}  Kf6 {[%clk 0:01:25]} 32. Kd3 {[%clk 0:00:05]}  Ke5 {[%clk 0:01:26]} 33. c3 {[%clk 0:00:04]}  Re3+ {[%clk 0:01:26]} 34. Kd2 {[%clk 0:00:04]}  Rh3 {[%clk 0:01:27]} 35. Re1+ {[%clk 0:00:03]}  Kf6 {[%clk 0:01:25]} 36. Rf1 {[%clk 0:00:03]}  Ke5 {[%clk 0:01:19]} 37. Re1+ {[%clk 0:00:04]}  Kd5 {[%clk 0:01:19]} 38. Rf1 {[%clk 0:00:04]}  Ke4 {[%clk 0:01:18]} 39. Re1+ {[%clk 0:00:04]}  Kf3 {[%clk 0:01:19]} 40. Re7 {[%clk 0:00:05]}  Rxh4 {[%clk 0:01:18]} 41. Rxb7 {[%clk 0:00:06]}  Rxg4 {[%clk 0:01:18]} 42. Rxa7 {[%clk 0:00:06]}  Rg2+ {[%clk 0:01:19]} 43. Ke1 {[%clk 0:00:06]}  Rxb2 {[%clk 0:01:19]} 44. Rg7 {[%clk 0:00:06]}  Re2+ {[%clk 0:01:14]} 45. Kf1 {[%clk 0:00:06]}  Rxa2 {[%clk 0:01:13]} 46. Ke1 {[%clk 0:00:06]}  Re2+ {[%clk 0:01:13]} 47. Kd1 {[%clk 0:00:06]}  Re6 {[%clk 0:01:12]} 48. Rf7 {[%clk 0:00:03]}  Kg3 {[%clk 0:01:12]} 0-1


[Site "https://www.chess.com"]

[Event "Titled Tuesday Blitz December 13 Early 2022"]
[White "Zeman, Matyas"]
[Black "Barria Zuniga, Daniel"]
[WhiteFideId "364398"]
[BlackFideId "3400816"]
[WhiteElo "2254"]
[BlackElo "2414"]
[Result "1-0"]
[Round "01"]
[TimeControl "180+1"]
[Date "2022.12.14"]
[WhiteClock "0:00:03"]
[BlackClock "0:00:16"]

1. d4 {[%clk 0:02:58]}  g6 {[%clk 0:02:57]} 2. e4 {[%clk 0:02:52]}  Bg7 {[%clk 0:02:57]} 3. Nc3 {[%clk 0:02:52]}  c5 {[%clk 0:02:57]} 4. d5 {[%clk 0:02:50]}  d6 {[%clk 0:02:56]} 5. Bb5+ {[%clk 0:02:49]}  Bd7 {[%clk 0:02:55]} 6. Be2 {[%clk 0:02:49]}  Nf6 {[%clk 0:02:53]} 7. Nf3 {[%clk 0:02:44]}  O-O {[%clk 0:02:45]} 8. a4 {[%clk 0:02:44]}  Na6 {[%clk 0:02:43]} 9. O-O {[%clk 0:02:43]}  Nb4 {[%clk 0:02:43]} 10. Nd2 {[%clk 0:02:41]}  e6 {[%clk 0:02:41]} 11. dxe6 {[%clk 0:02:11]}  Bxe6 {[%clk 0:02:42]} 12. Bc4 {[%clk 0:02:01]}  Re8 {[%clk 0:02:32]} 13. Bxe6 {[%clk 0:01:59]}  Rxe6 {[%clk 0:02:33]} 14. Nc4 {[%clk 0:01:58]}  Nxe4 {[%clk 0:02:30]} 15. Nxe4 {[%clk 0:01:58]}  Rxe4 {[%clk 0:02:30]} 16. Nd2 {[%clk 0:01:43]}  Re6 {[%clk 0:02:27]} 17. c3 {[%clk 0:01:33]}  Nd3 {[%clk 0:02:27]} 18. Nc4 {[%clk 0:01:33]}  Nxc1 {[%clk 0:02:19]} 19. Rxc1 {[%clk 0:01:34]}  d5 {[%clk 0:02:20]} 20. Ne3 {[%clk 0:01:33]}  d4 {[%clk 0:02:19]} 21. Nc4 {[%clk 0:01:29]}  Qd5 {[%clk 0:02:17]} 22. cxd4 {[%clk 0:01:28]}  Bxd4 {[%clk 0:02:14]} 23. Qb3 {[%clk 0:01:26]}  b6 {[%clk 0:02:11]} 24. a5 {[%clk 0:01:23]}  Rae8 {[%clk 0:02:08]} 25. axb6 {[%clk 0:01:21]}  axb6 {[%clk 0:02:09]} 26. Qb5 {[%clk 0:01:18]}  h5 {[%clk 0:02:05]} 27. b4 {[%clk 0:01:01]}  Qc6 {[%clk 0:01:37]} 28. Qxc6 {[%clk 0:00:56]}  Rxc6 {[%clk 0:01:38]} 29. b5 {[%clk 0:00:56]}  Rf6 {[%clk 0:01:36]} 30. Rc2 {[%clk 0:00:55]}  Ra8 {[%clk 0:01:33]} 31. g3 {[%clk 0:00:52]}  Ra4 {[%clk 0:01:32]} 32. Rb1 {[%clk 0:00:45]}  g5 {[%clk 0:01:22]} 33. Kg2 {[%clk 0:00:41]}  Kg7 {[%clk 0:01:21]} 34. f3 {[%clk 0:00:41]}  Kg6 {[%clk 0:01:21]} 35. h3 {[%clk 0:00:29]}  Re6 {[%clk 0:01:20]} 36. Kf1 {[%clk 0:00:23]}  f5 {[%clk 0:01:19]} 37. Re1 {[%clk 0:00:13]}  Kf6 {[%clk 0:01:19]} 38. Rxe6+ {[%clk 0:00:11]}  Kxe6 {[%clk 0:01:20]} 39. Nxb6 {[%clk 0:00:08]}  Rb4 {[%clk 0:01:19]} 40. Re2+ {[%clk 0:00:07]}  Kd6 {[%clk 0:01:13]} 41. Nc8+ {[%clk 0:00:04]}  Kd7 {[%clk 0:01:13]} 42. Nb6+ {[%clk 0:00:04]}  Kd6 {[%clk 0:01:09]} 43. Nc8+ {[%clk 0:00:04]}  Kc7 {[%clk 0:01:04]} 44. Ne7 {[%clk 0:00:04]}  Rb1+ {[%clk 0:01:02]} 45. Kg2 {[%clk 0:00:04]}  f4 {[%clk 0:00:53]} 46. g4 {[%clk 0:00:03]}  hxg4 {[%clk 0:00:49]} 47. hxg4 {[%clk 0:00:04]}  Rg1+ {[%clk 0:00:47]} 48. Kh2 {[%clk 0:00:04]}  Rg3 {[%clk 0:00:46]} 49. Nf5 {[%clk 0:00:02]}  Rxf3 {[%clk 0:00:40]} 50. Re6 {[%clk 0:00:02]}  Rf2+ {[%clk 0:00:34]} 51. Kh3 {[%clk 0:00:02]}  Rb2 {[%clk 0:00:28]} 52. Rc6+ {[%clk 0:00:02]}  Kb7 {[%clk 0:00:26]} 53. Nd6+ {[%clk 0:00:03]}  Kb8 {[%clk 0:00:22]} 54. b6 {[%clk 0:00:02]}  Rb3+ {[%clk 0:00:16]} 55. Kh2 {[%clk 0:00:02]}  Rxb6 {[%clk 0:00:17]} 56. Rxb6+ {[%clk 0:00:02]}  Kc7 {[%clk 0:00:17]} 57. Nc4 {[%clk 0:00:03]}  f3 {[%clk 0:00:16]} 58. Kg3 {[%clk 0:00:03]} 1-0


[Site "https://www.chess.com"]

[Event "Titled Tuesday Blitz December 13 Early 2022"]
[White "Zemlyanskii, Ivan"]
[Black "Jimenez Almeida, Luis David"]
[WhiteFideId "24249971"]
[BlackFideId "22242244"]
[WhiteElo "2107"]
[BlackElo "2158"]
[Result "1-0"]
[Round "01"]
[TimeControl "180+1"]
[Date "2022.12.14"]
[WhiteClock "0:00:20"]
[BlackClock "0:00:13"]

1. d4 {[%clk 0:02:56]}  g6 {[%clk 0:02:59]} 2. c4 {[%clk 0:02:57]}  Bg7 {[%clk 0:02:59]} 3. Nc3 {[%clk 0:02:58]}  c5 {[%clk 0:02:59]} 4. d5 {[%clk 0:02:58]}  Bxc3+ {[%clk 0:03:00]} 5. bxc3 {[%clk 0:02:59]}  Qa5 {[%clk 0:03:00]} 6. Bd2 {[%clk 0:02:57]}  f5 {[%clk 0:03:00]} 7. e4 {[%clk 0:02:58]}  fxe4 {[%clk 0:03:00]} 8. f3 {[%clk 0:02:58]}  e3 {[%clk 0:02:58]} 9. Bxe3 {[%clk 0:02:58]}  Qxc3+ {[%clk 0:02:58]} 10. Bd2 {[%clk 0:02:59]}  Qe5+ {[%clk 0:02:50]} 11. Ne2 {[%clk 0:02:58]}  Nf6 {[%clk 0:02:47]} 12. Bc3 {[%clk 0:02:52]}  Qe3 {[%clk 0:02:44]} 13. Rb1 {[%clk 0:02:45]}  d6 {[%clk 0:02:32]} 14. Rb3 {[%clk 0:02:44]}  Qh6 {[%clk 0:02:28]} 15. Ng3 {[%clk 0:02:39]}  Nbd7 {[%clk 0:02:23]} 16. Be2 {[%clk 0:02:39]}  O-O {[%clk 0:02:19]} 17. O-O {[%clk 0:02:39]}  Nb6 {[%clk 0:02:10]} 18. Re1 {[%clk 0:02:34]}  Bd7 {[%clk 0:01:59]} 19. Bd3 {[%clk 0:02:29]}  Ba4 {[%clk 0:01:53]} 20. Rxe7 {[%clk 0:02:08]}  Rae8 {[%clk 0:01:49]} 21. Qe2 {[%clk 0:01:48]}  Rxe7 {[%clk 0:01:24]} 22. Qxe7 {[%clk 0:01:47]}  Bxb3 {[%clk 0:01:20]} 23. Bxf6 {[%clk 0:01:24]}  Bxc4 {[%clk 0:01:12]} 24. Bf5 {[%clk 0:00:58]}  Qc1+ {[%clk 0:00:53]} 25. Kf2 {[%clk 0:00:57]}  Qd2+ {[%clk 0:00:42]} 26. Kg1 {[%clk 0:00:54]}  Rxf6 {[%clk 0:00:35]} 27. Be6+ {[%clk 0:00:48]}  Rxe6 {[%clk 0:00:35]} 28. Qxe6+ {[%clk 0:00:49]}  Kg7 {[%clk 0:00:35]} 29. Qe7+ {[%clk 0:00:49]}  Kh6 {[%clk 0:00:32]} 30. Nf5+ {[%clk 0:00:28]}  gxf5 {[%clk 0:00:28]} 31. Qf6+ {[%clk 0:00:28]}  Kh5 {[%clk 0:00:28]} 32. Qxf5+ {[%clk 0:00:29]}  Qg5 {[%clk 0:00:21]} 33. Qxh7+ {[%clk 0:00:28]}  Qh6 {[%clk 0:00:20]} 34. g4+ {[%clk 0:00:29]}  Kg5 {[%clk 0:00:20]} 35. h4+ {[%clk 0:00:24]}  Qxh4 {[%clk 0:00:18]} 36. Qe7+ {[%clk 0:00:25]}  Kf4 {[%clk 0:00:17]} 37. Qxh4 {[%clk 0:00:25]}  Bxd5 {[%clk 0:00:17]} 38. g5+ {[%clk 0:00:25]}  Kxf3 {[%clk 0:00:17]} 39. g6 {[%clk 0:00:25]}  c4 {[%clk 0:00:16]} 40. Qf6+ {[%clk 0:00:21]}  Ke3 {[%clk 0:00:16]} 41. g7 {[%clk 0:00:22]}  Kd3 {[%clk 0:00:15]} 42. Qxd6 {[%clk 0:00:22]}  c3 {[%clk 0:00:15]} 43. g8=Q {[%clk 0:00:21]}  c2 {[%clk 0:00:15]} 44. Qg5 {[%clk 0:00:20]}  Kc3 {[%clk 0:00:14]} 45. Qa3+ {[%clk 0:00:19]}  Kd4 {[%clk 0:00:13]} 46. Qge3+ {[%clk 0:00:19]}  Kc4 {[%clk 0:00:13]} 47. Qac3+ {[%clk 0:00:19]}  Kb5 {[%clk 0:00:12]} 48. Qec5+ {[%clk 0:00:19]}  Ka6 {[%clk 0:00:13]} 49. Q5a5# {[%clk 0:00:20]} 1-0


[Site "https://www.chess.com"]